bitfinex-derivatives/quotes_SOLF0:USTF0_20250221
["timestamp","ask_amount","ask_price","bid_price","bid_amount"]
[1740136757300,3.648,178.17,178.08,15.31406443]
[1740136757501,6.87326124,178.16,178.1,5.6135]
[1740136758198,5.6505297,178.15,178.11,0.03827481]
[1740136759009,5.6129,178.12,178.11,0.03827481]
[1740136759510,5.6138,178.1,178.04,5.6153]
[1740136759910,15.31406443,178.15,178.04,5.6153]
[1740136760106,15.31406443,178.12,178.03,5.6157]
[1740136760412,15.31406443,178.09,177.99,15.31406443]
[1740136760704,5.6144,178.08,178.06,0.03899724]
[1740136760910,5.6144,178.08,178.03,5.6155]
[1740136761101,5.6144,178.08,178.05,0.03949024]
[1740136761704,15.35494681,178.09,178.05,0.03949024]
[1740136761909,5.6148,178.06,178.05,0.03949024]
[1740136762906,1.8175,178.08,177.96,15.31406443]
[1740136763306,1.8175,178.08,178.0,5.6165]
[1740136763513,1.8175,178.08,177.96,15.31406443]
[1740136764015,0.03560021,178.04,178.0,0.04048231]
[1740136764516,0.03560021,178.04,178.0,5.65708231]
[1740136764711,0.03560021,178.04,178.0,0.04048231]
[1740136765716,0.03560021,178.04,178.01,5.6161]
[1740136766018,0.03560021,178.04,178.0,0.04048231]
[1740136766316,0.03560021,178.04,178.0,5.65708231]
[1740136766517,0.03560021,178.04,178.0,0.04048231]
[1740136766718,5.6158,178.03,178.0,0.04048231]
[1740136766918,0.03560021,178.04,178.0,0.04048231]
[1740136767313,5.616,178.03,178.0,0.04048231]
[1740136770121,5.65110021,178.04,178.0,0.04048231]
[1740136770916,0.03560021,178.04,178.0,5.65718231]
[1740136771314,0.03560021,178.04,178.02,5.6158]
[1740136771724,0.03560021,178.04,178.0,0.04048231]
[1740136772216,0.03560021,178.04,178.01,5.6162]
[1740136772820,0.03560021,178.04,178.0,0.04048231]
[1740136773417,5.6164,178.01,178.0,0.04048231]
[1740136774323,0.03560021,178.04,178.0,0.04048231]
[1740136774519,5.6161,178.02,178.0,0.04048231]
[1740136775626,0.03560021,178.04,178.0,0.04048231]
[1740136775826,5.6164,178.01,178.0,0.04048231]
[1740136776526,0.03560021,178.04,178.0,0.04048231]
[1740136776825,15.31406443,178.03,178.0,0.04048231]
[1740136777028,17.05696443,178.03,177.93,93.50292532]
[1740136777228,5.6165,178.01,177.97,5.6175]
[1740136778127,5.65770498,178.01,177.97,5.6175]
[1740136778328,5.6168,178.0,177.97,5.6175]
[1740136778724,0.04120498,178.01,177.98,5.6172]
[1740136779327,0.04120498,178.01,177.97,5.6176]
[1740136779528,5.65780498,178.01,177.93,93.50292532]
[1740136780134,0.04120498,178.01,177.93,93.50292532]
[1740136781540,0.04120498,178.01,177.97,5.6173]
[1740136782040,5.65780498,178.01,177.96,5.6179]
[1740136782637,0.04120498,178.01,177.93,93.50292532]
[1740136782942,0.04120498,178.01,177.98,15.31406443]
[1740136783146,0.04120498,178.01,178.0,5.6167]
[1740136783638,1.8175,178.08,178.0,56.18]
[1740136783834,1.8175,178.08,178.01,15.31406443]
[1740136784239,1.8175,178.08,177.98,15.31406443]
[1740136784744,5.615,178.06,178.0,5.6166]
[1740136784940,0.0399297,178.05,178.01,0.04119383]
[1740136785142,0.0399297,178.05,178.02,5.6158]
[1740136785446,0.0399297,178.05,178.01,0.04119383]
[1740136785646,5.6154,178.04,178.01,0.04119383]
[1740136786145,0.0399297,178.05,178.01,0.04119383]
[1740136787443,0.0399297,178.05,178.01,5.65749383]
[1740136787636,0.0399297,178.05,178.01,0.04119383]
[1740136788643,5.6161,178.02,178.01,0.04119383]
[1740136788843,0.0399297,178.05,177.93,78.18886089]
[1740136789041,5.6169,178.0,177.96,5.6177]
[1740136790040,5.65606606,178.0,177.96,5.6177]
[1740136790246,0.03916606,178.0,177.93,78.18886089]
[1740136791449,0.03916606,178.0,177.97,5.6174]
[1740136791645,0.03916606,178.0,177.93,78.18886089]
[1740136792045,0.03916606,178.0,177.98,5.6173]
[1740136793545,0.03916606,178.0,177.97,5.6174]
[1740136793748,0.03916606,178.0,177.93,78.18886089]
[1740136796047,5.65596606,178.0,177.95,5.618]
[1740136796546,15.47738378,178.0,177.95,5.618]
[1740136797351,15.47738378,178.0,177.93,88.01027861]
[1740136797352,9.86058378,178.0,177.93,88.01027861]
[1740136798150,9.86058378,178.0,177.96,5.6179]
[1740136798550,0.03916606,178.0,177.95,9.82141772]
[1740136799150,0.03916606,178.0,177.99,9.82141772]
[1740136800044,11.51941772,178.07,177.99,66.00141772]
[1740136800347,1.8175,178.08,178.04,9.82141772]
[1740136800553,15.43471772,178.11,178.05,5.6151]
[1740136800746,15.43471772,178.11,178.04,9.82141772]
[1740136800945,9.82141772,178.11,178.04,9.82141772]
[1740136801152,0.0378027,178.09,178.07,5.6143]
[1740136801351,9.82141772,178.11,178.07,5.6143]
[1740136801548,0.03560129,178.1,178.07,5.6143]
[1740136801747,0.03560129,178.1,178.06,15.47573444]
[1740136801949,0.03560129,178.1,178.06,0.03961672]
[1740136802151,9.82141772,178.09,178.06,0.03961672]
[1740136802454,15.43591772,178.07,178.06,0.03961672]
[1740136802653,5.6145,178.07,178.06,0.03961672]
[1740136803154,1.6768,178.08,178.0,5.6166]
[1740136803743,5.6154,178.05,178.0,5.6166]
[1740136804148,0.03764911,178.04,177.95,135.8876289]
[1740136804359,0.03764911,178.04,177.98,5.6171]
[1740136805145,0.03764911,178.04,177.95,135.8876289]
[1740136805344,0.03764911,178.04,178.0,5.6165]
[1740136805950,5.65304911,178.04,178.0,5.6165]
[1740136806753,5.65304911,178.04,177.95,135.8876289]
[1740136807056,0.03764911,178.04,177.95,135.8876289]
[1740136808648,0.03764911,178.04,177.95,128.3876289]
[1740136810356,5.6159,178.03,177.95,128.3876289]
[1740136810651,0.03764911,178.04,177.95,128.3876289]
[1740136811556,0.03764911,178.04,178.0,5.6165]
[1740136812456,0.03764911,178.04,177.95,128.3876289]
[1740136812958,0.03764911,178.04,177.98,15.33380504]
[1740136813348,0.03764911,178.04,177.95,128.3876289]
[1740136813547,0.03764911,178.04,178.02,5.6158]
[1740136814252,0.03764911,178.04,177.96,0.5717]
[1740136814457,0.03764911,178.04,177.98,15.33380504]
[1740136814859,0.03764911,178.04,178.02,5.616]
[1740136815558,0.03764911,178.04,178.01,5.6163]
[1740136815756,0.03764911,178.04,177.98,15.33380504]
[1740136815953,0.03764911,178.04,177.99,5.6168]
[1740136816152,0.03764911,178.04,177.98,15.33380504]
[1740136816558,0.03764911,178.04,178.03,5.6157]
[1740136820958,0.03764911,178.04,177.98,15.33380504]
[1740136821363,0.03764911,178.04,177.96,0.5717]
[1740136821559,0.03764911,178.04,177.95,113.05382386]
[1740136821863,5.6162,178.02,177.95,113.05382386]
[1740136822261,0.03845056,178.0,177.95,113.05382386]
[1740136822759,0.03845056,178.0,177.96,5.6178]
[1740136823454,0.03845056,178.0,177.95,113.05382386]
[1740136824464,0.03845056,178.0,177.97,5.6176]
[1740136825063,0.03845056,178.0,177.98,5.6173]
[1740136825264,0.03845056,178.0,177.95,113.05382386]
[1740136826062,0.03845056,178.0,177.98,5.6171]
[1740136826564,0.03845056,178.0,177.99,5.617]
[1740136827361,15.33380504,178.08,177.95,128.3876289]
[1740136827566,15.33380504,178.08,178.03,5.6157]
[1740136827765,20.94820504,178.08,178.03,5.6157]
[1740136827968,15.33380504,178.08,177.96,0.572]
[1740136828167,15.33380504,178.08,177.95,128.3876289]
[1740136828367,5.6157,178.04,177.95,128.3876289]
[1740136828560,15.33380504,178.08,178.0,0.04209923]
[1740136828765,0.0399245,178.03,178.0,0.04209923]
[1740136829065,5.6164,178.01,178.0,0.04209923]
[1740136829463,15.33380504,178.02,177.92,15.33380504]
[1740136829664,5.617,177.99,177.95,5.618]
[1740136830368,5.6171,177.99,177.95,5.6183]
[1740136830769,5.65957068,177.99,177.95,5.6183]
[1740136831070,5.65957068,177.99,177.91,0.572]
[1740136831567,0.04247068,177.99,177.91,0.572]
[1740136832268,0.04247068,177.99,177.93,15.33380504]
[1740136832469,0.04247068,177.99,177.98,5.6173]
[1740136834065,0.04247068,177.99,177.93,15.33380504]
[1740136835570,0.04247068,177.99,177.96,5.6179]
[1740136836473,0.04247068,177.99,177.93,15.33380504]
[1740136837074,0.04247068,177.99,177.97,5.6176]
[1740136837271,0.04247068,177.99,177.93,15.33380504]
[1740136837576,0.04247068,177.99,177.96,5.6179]
[1740136837875,0.04247068,177.99,177.93,15.33380504]
[1740136838474,0.04247068,177.99,177.96,5.6176]
[1740136838874,0.04247068,177.99,177.93,15.33380504]
[1740136839175,0.04247068,177.99,177.97,5.6174]
[1740136839577,0.04247068,177.99,177.96,5.6177]
[1740136840079,0.04247068,177.99,177.93,15.33380504]
[1740136840779,0.04247068,177.99,177.97,5.6175]
[1740136841479,0.04247068,177.99,177.93,15.33380504]
[1740136842071,0.04247068,177.99,177.97,5.6174]
[1740136842477,0.04247068,177.99,177.93,15.33380504]
[1740136842680,0.04247068,177.99,177.98,5.6173]
[1740136842975,255.39639369,178.18,177.98,9.81797898]
[1740136842976,266.61869369,178.18,177.98,9.81797898]
[1740136843279,9.81797898,178.08,178.02,9.81797898]
[1740136843983,9.81797898,178.08,178.03,5.6155]
[1740136844278,0.04276731,178.07,178.03,0.03978482]
[1740136844471,0.04276731,178.07,178.04,9.81797898]
[1740136844678,0.04276731,178.07,178.03,0.03978482]
[1740136846876,0.04276731,178.07,178.05,5.6149]
[1740136847078,0.04276731,178.07,178.03,0.03978482]
[1740136849184,5.6149,178.06,178.03,0.03978482]
[1740136849384,0.04276731,178.07,178.03,0.03978482]
[1740136849784,0.04276731,178.07,178.04,5.6152]
[1740136850681,0.04276731,178.07,178.03,0.03978482]
[1740136851585,0.04276731,178.07,178.05,5.615]
[1740136853489,0.04276731,178.07,178.06,5.6148]
[1740136857894,0.04276731,178.07,178.03,0.03978482]
[1740136859000,0.04276731,178.07,178.04,5.6152]
[1740136859195,0.04276731,178.07,178.03,0.03978482]
[1740136860290,0.04276731,178.07,178.04,5.6154]
[1740136860599,0.04276731,178.07,178.03,0.03978482]
[1740136861899,0.04276731,178.07,178.04,5.6151]
[1740136862101,0.04276731,178.07,178.03,0.03978482]
[1740136862402,0.04276731,178.07,178.04,5.6154]
[1740136862597,0.04276731,178.07,178.03,0.03978482]
[1740136862998,0.04276731,178.07,178.05,5.6149]
[1740136865998,0.04276731,178.07,178.03,0.03978482]
[1740136866202,9.81102402,178.05,178.03,0.03978482]
[1740136866800,9.85379133,178.07,178.03,0.03978482]
[1740136867003,0.04276731,178.07,178.06,5.6148]
[1740136868701,0.04276731,178.07,178.06,15.42582402]
[1740136868904,11.49722402,178.15,178.11,5.6132]
[1740136869203,11.49722402,178.15,178.1,9.81102402]
[1740136869393,9.81102402,178.17,178.1,9.81102402]
[1740136869797,9.81102402,178.15,178.1,9.81102402]
[1740136870098,15.42362402,178.13,178.12,0.03877653]
[1740136870401,9.81102402,178.13,178.06,9.81102402]
[1740136870791,15.42442402,178.11,178.04,9.81102402]
[1740136871002,9.81102402,178.11,178.04,9.81102402]
[1740136871202,1.7609,178.12,178.06,9.81102402]
[1740136871398,0.04064752,178.09,178.06,9.81102402]
[1740136871599,0.04064752,178.09,178.07,5.6145]
[1740136871901,0.04064752,178.09,178.06,9.81102402]
[1740136872102,0.04064752,178.09,178.08,9.81102402]
[1740136872905,0.04064752,178.09,178.08,71.57522402]
[1740136873103,9.81102402,178.17,178.08,65.96102402]
[1740136873298,9.81102402,178.15,178.09,9.81102402]
[1740136873705,9.81102402,178.17,178.11,9.81102402]
[1740136873906,1.8159,178.2,178.15,9.81102402]
[1740136874104,1.8159,178.2,178.16,5.6114]
[1740136874304,0.04303567,178.19,178.16,5.65421908]
[1740136874499,0.04303567,178.19,178.16,0.04281908]
[1740136874700,0.04303567,178.19,178.17,5.611]
[1740136874901,0.04303567,178.19,178.17,9.81102402]
[1740136875401,251.60085686,178.24,178.23,5.6094]
[1740136875597,27.83152654,178.27,178.23,65.92102402]
[1740136875804,27.83152654,178.27,178.25,9.81102402]
[1740136876200,27.83152654,178.27,178.23,9.81102402]
[1740136876406,37.64255056,178.27,178.24,0.04248614]
[1740136876599,3.6023,178.26,178.24,0.04248614]
[1740136877311,3.6023,178.26,178.2,7.79698322]
[1740136877704,1.8056,178.25,178.2,7.79698322]
[1740136878399,1.783,178.26,178.21,0.03932899]
[1740136881006,1.783,178.26,178.22,5.6097]
[1740136883002,1.783,178.26,178.21,20.95016494]
[1740136883303,1.783,178.26,178.21,15.34016494]
[1740136883908,1.783,178.26,178.21,20.95016494]
[1740136884505,1.783,178.26,178.21,15.34016494]
[1740136884713,1.783,178.26,178.22,5.6095]
[1740136885513,1.783,178.26,178.23,5.6094]
[1740136886114,0.04091922,178.27,178.23,5.6092]
[1740136886713,0.04091922,178.27,178.22,5.6097]
[1740136887912,0.04091922,178.27,178.22,13.40668322]
[1740136888113,0.04091922,178.27,178.23,5.6094]
[1740136888611,5.58007523,178.28,178.23,5.6094]
[1740136889014,1.7147,178.29,178.22,7.79698322]
[1740136889315,1.7026,178.32,178.22,7.79698322]
[1740136889510,5.6072,178.3,178.24,5.609]
[1740136889715,15.30083595,178.31,178.22,31.18793288]
[1740136889915,0.04176595,178.29,178.25,0.03855262]
[1740136890312,5.64956595,178.29,178.25,0.03855262]
[1740136890814,1.7711,178.28,178.25,0.03855262]
[1740136891813,7.3791,178.28,178.25,0.03855262]
[1740136892411,1.7711,178.28,178.26,5.6085]
[1740136892706,1.7711,178.28,178.25,0.03855262]
[1740136893117,1.7711,178.28,178.25,5.64725262]
[1740136893517,7.379,178.28,178.25,5.64725262]
[1740136893917,7.379,178.28,178.25,0.03855262]
[1740136894118,5.6082,178.27,178.25,0.03855262]
[1740136894318,1.7711,178.28,178.23,7.79698322]
[1740136895215,5.6085,178.26,178.23,7.79698322]
[1740136895417,5.6085,178.26,178.24,0.03733037]
[1740136895814,5.6082,178.27,178.24,0.03733037]
[1740136896116,1.7711,178.28,178.24,0.03733037]
[1740136896920,5.6087,178.26,178.24,0.03733037]
[1740136899215,1.7711,178.28,178.24,0.03733037]
[1740136899411,5.6084,178.27,178.24,0.03733037]
[1740136899612,1.7711,178.28,178.24,0.03733037]
[1740136900323,1.79826595,178.29,178.24,0.03733037]
[1740136900617,5.6085,178.26,178.24,0.03733037]
[1740136901122,1.79826595,178.29,178.24,0.03733037]
[1740136901319,5.6083,178.27,178.24,5.64643037]
[1740136901919,5.6083,178.27,178.24,0.03733037]
[1740136902817,5.6083,178.27,178.25,63.72506643]
[1740136903019,5.6079,178.28,178.25,63.72506643]
[1740136903925,5.6079,178.28,178.26,63.72506643]
[1740136904125,1.79826595,178.29,178.26,63.72506643]
[1740136905316,0.04176595,178.29,178.27,5.6081]
[1740136905722,0.04176595,178.29,178.26,69.33336643]
[1740136906627,18.70263011,178.35,178.28,134.03857892]
[1740136906824,5.6076,178.29,178.28,134.03857892]
[1740136907220,5.6076,178.29,178.28,131.27327892]
[1740136907422,5.6076,178.29,178.27,214.68758947]
[1740136907726,5.6079,178.28,178.27,211.92228947]
[1740136908027,5.6079,178.28,178.27,187.06838947]
[1740136908227,5.6079,178.28,178.27,186.10768947]
[1740136908427,61.6979,178.28,178.27,186.10768947]
[1740136908626,61.6979,178.28,178.27,177.23398947]
[1740136909830,61.6979,178.28,178.27,55.93919536]
[1740136910026,61.6979,178.28,178.27,38.63899536]
[1740136910225,61.6979,178.28,178.27,29.98949536]
[1740136911730,5.6082,178.27,178.26,0.03805418]
[1740136919031,56.1,178.27,178.22,7.80980728]
[1740136919231,5.6094,178.23,178.22,7.80980728]
[1740136919632,20.89943011,178.25,178.22,7.80980728]
[1740136919838,15.29043011,178.25,178.22,7.80980728]
[1740136920339,0.03692657,178.25,178.22,7.85210082]
[1740136920843,0.03692657,178.25,178.24,5.6091]
[1740136921338,0.03692657,178.25,178.22,7.85210082]
[1740136921541,0.03692657,178.25,178.22,0.04229354]
[1740136921738,0.03692657,178.25,178.22,1.81819354]
[1740136922342,15.29043011,178.31,178.22,1.81819354]
[1740136922543,5.6074,178.3,178.22,1.81819354]
[1740136922839,15.29043011,178.31,178.22,1.81819354]
[1740136923048,5.6079,178.28,178.24,5.6089]
[1740136923444,5.65032464,178.28,178.24,5.65120013]
[1740136923950,5.65032464,178.28,178.25,5.6088]
[1740136924148,0.04242464,178.28,178.25,5.6088]
[1740136924845,5.65062464,178.28,178.25,5.6088]
[1740136925047,0.04242464,178.28,178.26,5.6083]
[1740136926646,0.04242464,178.28,178.24,9.82969462]
[1740136926947,9.78739449,178.33,178.26,9.78739449]
[1740136927351,5.6069,178.32,178.28,5.6077]
[1740136927646,9.78739449,178.33,178.26,9.78739449]
[1740136927843,9.78739449,178.31,178.24,9.78739449]
[1740136928049,9.82707007,178.31,178.28,0.03855245]
[1740136928453,9.78739449,178.29,178.28,0.03855245]
[1740136929050,15.39499449,178.29,178.28,0.03855245]
[1740136929753,5.6082,178.27,178.26,7.80980728]
[1740136929949,9.78739449,178.27,178.25,22.78706909]
[1740136930347,5.6085,178.26,178.25,22.78706909]
[1740136930553,5.6085,178.26,178.25,9.23366909]
[1740136930754,5.6085,178.26,178.25,0.42166909]
[1740136931147,15.43186614,178.27,178.24,0.03769577]
[1740136931561,9.78739449,178.25,178.24,0.03769577]
[1740136932756,5.64447165,178.27,178.24,0.03769577]
[1740136932960,9.78739449,178.26,178.24,5.64679577]
[1740136933159,9.78739449,178.26,178.24,0.03769577]
[1740136933549,15.39589449,178.26,178.24,0.03769577]
[1740136934358,9.78739449,178.26,178.24,0.03769577]
[1740136935761,5.64447165,178.27,178.24,0.03769577]
[1740136935762,0.03617165,178.27,178.24,0.03769577]
[1740136935961,0.03617165,178.27,178.25,5.6088]
[1740136936256,193.0,178.34,178.25,65.88739449]
[1740136936462,148.34504826,178.42,178.32,5.6066]
[1740136936655,9.78739449,178.37,178.32,5.6066]
[1740136936859,15.39319449,178.35,178.31,1.7365]
[1740136937365,9.82389906,178.35,178.31,1.77253571]
[1740136937564,9.78739449,178.33,178.31,0.03603571]
[1740136937764,9.78739449,178.33,178.23,1.7365]
[1740136938061,9.78739449,178.27,178.23,1.7365]
[1740136938263,15.39579449,178.27,178.23,1.7365]
[1740136938758,5.609,178.25,178.23,1.7365]
[1740136939060,5.609,178.25,178.23,1.77262905]
[1740136939462,5.6087,178.26,178.23,1.77262905]
[1740136939661,0.04001777,178.27,178.23,1.77262905]
[1740136940657,5.6088,178.25,178.23,1.77262905]
[1740136940858,0.04001777,178.27,178.23,7.38202905]
[1740136941162,5.6088,178.26,178.23,7.38202905]
[1740136941562,0.04001777,178.27,178.23,1.77262905]
[1740136942065,5.6086,178.26,178.23,1.77262905]
[1740136942253,0.04001777,178.27,178.23,1.77262905]
[1740136942652,5.6087,178.26,178.23,1.77262905]
[1740136942852,0.04001777,178.27,178.23,7.38182905]
[1740136943056,0.04001777,178.27,178.23,1.77262905]
[1740136943657,0.04001777,178.27,178.23,0.03612905]
[1740136944062,0.04001777,178.27,178.24,5.6089]
[1740136944957,5.64831777,178.27,178.24,5.6089]
[1740136945762,0.04001777,178.27,178.24,5.6089]
[1740136945960,0.04001777,178.27,178.23,0.03612905]
[1740136946560,5.6087,178.26,178.23,5.64542905]
[1740136947965,0.04001777,178.27,178.23,0.03612905]
[1740136948466,5.6086,178.26,178.23,5.64552905]
[1740136948769,5.6086,178.26,178.23,0.03612905]
[1740136948962,0.04001777,178.27,178.23,0.03612905]
[1740136949465,15.30146577,178.26,178.23,0.03612905]
[1740136949860,15.30146577,178.26,178.23,5.64552905]
[1740136950260,0.04001777,178.27,178.23,0.03612905]
[1740136950466,5.6091,178.24,178.23,0.03612905]
[1740136950667,0.04001777,178.27,178.23,0.03612905]
[1740136951066,5.6088,178.26,178.23,5.64542905]
[1740136951463,0.04001777,178.27,178.23,0.03612905]
[1740136951857,5.6091,178.25,178.23,0.03612905]
[1740136952363,5.6091,178.25,178.23,5.64552905]
[1740136952966,5.6087,178.26,178.23,5.64552905]
[1740136953367,0.04001777,178.27,178.23,5.64552905]
[1740136953662,0.04001777,178.27,178.23,0.03612905]
[1740136954168,5.6091,178.24,178.23,0.03612905]
[1740136954567,0.04001777,178.27,178.23,0.03612905]
[1740136954764,5.6086,178.26,178.23,5.64522905]
[1740136956763,0.04001777,178.27,178.23,0.03612905]
[1740136957373,0.04001777,178.27,178.24,5.6091]
[1740136957675,0.04001777,178.27,178.23,0.03612905]
[1740136957862,5.64831777,178.27,178.24,5.609]
[1740136958171,0.04001777,178.27,178.23,0.03612905]
[1740136958973,15.30146577,178.32,178.23,0.03612905]
[1740136959670,5.6089,178.25,178.23,0.03612905]
[1740136959874,15.30146577,178.29,178.22,5.6097]
[1740136960070,15.30146577,178.29,178.24,6.08442863]
[1740136960275,5.6087,178.26,178.24,6.12132689]
[1740136960476,0.03577392,178.27,178.24,6.12132689]
[1740136961779,5.6088,178.25,178.24,6.12132689]
[1740136961973,5.6088,178.25,178.24,0.03689826]
[1740136962367,5.6088,178.26,178.24,0.03689826]
[1740136963374,5.64427392,178.27,178.24,5.64589826]
[1740136964166,0.03577392,178.27,178.24,5.64589826]
[1740136964372,0.03577392,178.27,178.26,5.6085]
[1740136964771,15.39469605,178.32,178.29,5.6075]
[1740136964973,9.78789605,178.34,178.27,9.78789605]
[1740136965476,193.0,178.41,178.27,9.78789605]
[1740136965773,9.78789605,178.35,178.29,9.78789605]
[1740136965977,9.78789605,178.35,178.32,5.64585556]
[1740136966674,5.64360676,178.36,178.32,5.64585556]
[1740136967176,0.03820676,178.36,178.32,0.03945556]
[1740136967376,0.03820676,178.36,178.33,5.6061]
[1740136967581,0.03820676,178.36,178.32,0.03945556]
[1740136967781,16.62747653,178.42,178.32,0.03945556]
[1740136967977,5.6045,178.39,178.33,5.606]
[1740136968176,16.62747653,178.42,178.33,1.8023]
[1740136968377,15.28242827,178.39,178.33,1.8023]
[1740136968579,5.6052,178.37,178.33,1.8023]
[1740136968978,0.03764167,178.37,178.33,1.83806539]
[1740136969279,5.6054,178.36,178.33,1.83806539]
[1740136969480,0.03764167,178.37,178.33,1.83806539]
[1740136969676,16.62747653,178.42,178.33,1.83806539]
[1740136969979,15.28242827,178.42,178.33,1.83806539]
[1740136970177,15.28242827,178.42,178.33,17.12049366]
[1740136970375,0.1092,178.5,178.33,17.12049366]
[1740136970376,4.28579657,178.52,178.36,15.28242827]
[1740136970573,15.28242827,178.48,178.4,5.6041]
[1740136970775,15.28242827,178.48,178.36,15.28242827]
[1740136970975,0.03866267,178.46,178.42,0.03774315]
[1740136972178,1.3223456,178.56,178.42,0.03774315]
[1740136972487,15.28242827,178.55,178.42,15.28242827]
[1740136973582,0.04105861,178.5,178.47,0.04286451]
[1740136976585,5.6014,178.49,178.47,0.04286451]
[1740136976886,0.04105861,178.5,178.47,0.04286451]
[1740136977282,5.6015,178.49,178.47,0.04286451]
[1740136977682,0.04105861,178.5,178.47,0.04286451]
[1740136977889,5.6016,178.48,178.47,0.04286451]
[1740136981282,0.04105861,178.5,178.47,0.04286451]
[1740136981487,1.3223456,178.56,178.47,15.32529278]
[1740136981886,16.60477387,178.56,178.47,0.04286451]
[1740136982088,15.28242827,178.53,178.47,0.04286451]
[1740136982489,1.3223456,178.56,178.47,0.04286451]
[1740136982692,0.04154169,178.52,178.47,0.04286451]
[1740136982893,0.04154169,178.52,178.49,5.6012]
[1740136983095,0.04154169,178.52,178.47,15.32529278]
[1740136983395,1.3223456,178.56,178.47,15.32529278]
[1740136983594,5.5981,178.59,178.52,5.6]
[1740136983991,15.28242827,178.61,178.49,5.6012]
[1740136984196,15.28242827,178.61,178.47,15.28242827]
[1740136984395,15.28242827,178.58,178.47,15.28242827]
[1740136984594,5.5996,178.55,178.52,0.04011768]
[1740136984897,0.04278927,178.56,178.52,0.04011768]
[1740136985598,0.04278927,178.56,178.55,5.5994]
[1740136985896,0.04278927,178.56,178.52,0.04011768]
[1740136986495,0.04278927,178.56,178.53,5.6]
[1740136986692,15.28242827,178.62,178.52,0.04011768]
[1740136986889,15.28242827,178.62,178.51,3.4535]
[1740136987089,15.28242827,178.65,178.53,15.28242827]
[1740136987497,5.5972,178.62,178.57,5.5986]
[1740136987703,15.28242827,178.65,178.53,15.28242827]
[1740136987902,0.04147242,178.61,178.58,0.04184678]
[1740136988900,15.28242827,178.7,178.58,0.04184678]
[1740136989095,15.28242827,178.7,178.56,15.28242827]
[1740136989503,15.28242827,178.67,178.56,15.28242827]
[1740136990101,0.03746807,178.63,178.6,0.035726]
[1740136990399,5.5953,178.68,178.63,5.5968]
[1740136990594,15.28242827,178.71,178.63,5.5968]
[1740136990800,15.28242827,178.71,178.6,3.4279]
[1740136990999,5.5956,178.68,178.62,5.5969]
[1740136991200,15.28242827,178.71,178.6,3.4279]
[1740136991406,0.03127408,178.67,178.63,0.0377376]
[1740136991704,15.28242827,178.68,178.6,3.4279]
[1740136991901,0.03127408,178.67,178.63,0.03822693]
[1740136992301,5.5966,178.64,178.63,0.03822693]
[1740136993101,5.5966,178.64,178.63,2.693e-05]
[1740136993501,61.5766,178.64,178.63,2.693e-05]
[1740136994006,55.98,178.64,178.5,15.28242827]
[1740136994207,15.28242827,178.6,178.5,15.28242827]
[1740136994707,15.28242827,178.63,178.51,7.65519061]
[1740136994907,22.78242827,178.66,178.59,5.5981]
[1740136995106,0.03594553,178.59,178.55,0.03820148]
[1740136995407,15.28242827,178.66,178.56,15.28242827]
[1740136995605,15.28242827,178.66,178.6,5.5978]
[1740136995606,5.5963,178.65,178.6,5.5978]
[1740136995996,15.28242827,178.66,178.6,5.5978]
[1740136996196,5.5963,178.65,178.6,5.5978]
[1740136996403,0.03355549,178.65,178.61,0.0358654]
[1740136997104,5.62995549,178.65,178.61,0.0358654]
[1740136997406,0.03355549,178.65,178.61,0.0358654]
[1740136997606,5.5958,178.67,178.62,5.5971]
[1740136998209,5.596,178.66,178.62,5.5971]
[1740136998404,15.28242827,178.69,178.63,5.5966]
[1740136998801,5.5959,178.67,178.63,5.5966]
[1740136999009,5.5959,178.67,178.61,0.0358654]
[1740136999010,15.28242827,178.69,178.62,5.5971]
[1740136999608,15.28242827,178.69,178.61,0.0358654]
[1740136999811,5.5959,178.67,178.63,5.5966]
[1740137000209,15.28242827,178.72,178.61,0.0358654]
[1740137000410,5.5949,178.7,178.66,5.5959]
[1740137000614,15.28242827,178.72,178.6,1.7564]
[1740137000816,15.28242827,178.72,178.65,0.03645123]
[1740137001007,15.28242827,178.72,178.65,5.63235123]
[1740137001409,15.28242827,178.72,178.65,0.03645123]
[1740137001609,15.28242827,178.75,178.65,0.03645123]
[1740137002210,3.4992,178.81,178.65,15.3188795]
[1740137002518,15.28242827,178.77,178.66,1.6703]
[1740137002709,15.28242827,178.77,178.71,0.04134994]
[1740137004015,15.28242827,178.74,178.71,0.04134994]
[1740137004509,5.5941,178.72,178.66,61.04072416]
[1740137004706,15.28242827,178.74,178.66,61.04072416]
[1740137004911,5.5956,178.67,178.66,61.04072416]
[1740137006015,5.5956,178.67,178.66,128.39954711]
[1740137006516,15.28242827,178.7,178.66,128.39954711]
[1740137006916,5.5956,178.67,178.66,119.62284711]